[Event "Titled Tuesday Blitz January 17 Early 2023"]
[White "Bove, Alessandro"]
[Black "Florescu, Codrut-Constantin"]
[WhiteFideId "814121"]
[BlackFideId "1202200"]
[WhiteElo "2311"]
[BlackElo "2259"]
[Result "0-1"]
[Round "02"]
[TimeControl "180+2"]
[Date "2023.01.17"]
[WhiteClock "0:01:13"]
[BlackClock "0:00:47"]

1. d4 {[%clk 0:03:00]}  Nf6 {[%clk 0:02:59]} 2. Nf3 {[%clk 0:03:01]}  e6 {[%clk 0:02:59]} 3. Bg5 {[%clk 0:03:01]}  h6 {[%clk 0:02:58]} 4. Bh4 {[%clk 0:03:00]}  d5 {[%clk 0:02:58]} 5. e3 {[%clk 0:03:00]}  c5 {[%clk 0:02:58]} 6. Bd3 {[%clk 0:02:59]}  Nc6 {[%clk 0:02:59]} 7. c3 {[%clk 0:02:59]}  Bd7 {[%clk 0:02:56]} 8. Qe2 {[%clk 0:02:59]}  Bd6 {[%clk 0:02:50]} 9. Nbd2 {[%clk 0:02:58]}  Qb6 {[%clk 0:02:40]} 10. O-O-O {[%clk 0:02:56]}  cxd4 {[%clk 0:02:31]} 11. exd4 {[%clk 0:02:55]}  Nh5 {[%clk 0:02:31]} 12. Bg3 {[%clk 0:02:52]}  Nf4 {[%clk 0:02:30]} 13. Bxf4 {[%clk 0:02:52]}  Bxf4 {[%clk 0:02:31]} 14. Kb1 {[%clk 0:02:51]}  O-O {[%clk 0:02:26]} 15. h4 {[%clk 0:02:50]}  Rac8 {[%clk 0:02:23]} 16. g4 {[%clk 0:02:50]}  Rfe8 {[%clk 0:02:16]} 17. g5 {[%clk 0:02:50]}  h5 {[%clk 0:02:16]} 18. Ne5 {[%clk 0:02:47]}  Nxe5 {[%clk 0:02:10]} 19. dxe5 {[%clk 0:02:48]}  Bxd2 {[%clk 0:02:07]} 20. Rxd2 {[%clk 0:02:41]}  g6 {[%clk 0:02:07]} 21. f4 {[%clk 0:02:36]}  Rxc3 {[%clk 0:02:02]} 22. Rc2 {[%clk 0:02:30]}  Rxc2 {[%clk 0:02:02]} 23. Bxc2 {[%clk 0:02:26]}  Bb5 {[%clk 0:02:00]} 24. Qf3 {[%clk 0:02:19]}  Rc8 {[%clk 0:01:50]} 25. Rc1 {[%clk 0:02:15]}  Qc5 {[%clk 0:01:42]} 26. a3 {[%clk 0:02:13]}  Ba4 {[%clk 0:01:37]} 27. b3 {[%clk 0:02:11]}  Bb5 {[%clk 0:01:33]} 28. Ka2 {[%clk 0:02:09]}  a5 {[%clk 0:01:26]} 29. a4 {[%clk 0:02:03]}  Be8 {[%clk 0:01:20]} 30. Qh3 {[%clk 0:01:53]}  b5 {[%clk 0:01:10]} 31. axb5 {[%clk 0:01:53]}  Bxb5 {[%clk 0:01:08]} 32. f5 {[%clk 0:01:50]}  exf5 {[%clk 0:00:57]} 33. Bxf5 {[%clk 0:01:38]}  Qf2+ {[%clk 0:00:57]} 34. Ka3 {[%clk 0:01:13]}  Rxc1 {[%clk 0:00:52]} 35. Bxg6 {[%clk 0:01:13]}  Ra1# {[%clk 0:00:47]} 0-1


[Site "https://www.chess.com"]

[Event "Titled Tuesday Blitz January 17 Early 2023"]
[White "Carrasco Miranda, Andres"]
[Black "Berezin, Viktor"]
[WhiteFideId "3405990"]
[BlackFideId "14107872"]
[WhiteElo "2240"]
[BlackElo "2307"]
[Result "1-0"]
[Round "02"]
[TimeControl "180+2"]
[Date "2023.01.17"]
[WhiteClock "0:01:10"]
[BlackClock "0:00:42"]

1. d4 {[%clk 0:03:00]}  Nf6 {[%clk 0:02:59]} 2. c4 {[%clk 0:03:00]}  g6 {[%clk 0:02:59]} 3. g3 {[%clk 0:03:00]}  Bg7 {[%clk 0:03:00]} 4. Bg2 {[%clk 0:02:59]}  O-O {[%clk 0:03:00]} 5. Nc3 {[%clk 0:02:59]}  d6 {[%clk 0:03:01]} 6. Nf3 {[%clk 0:02:59]}  Nc6 {[%clk 0:03:01]} 7. O-O {[%clk 0:02:59]}  a6 {[%clk 0:03:02]} 8. Bf4 {[%clk 0:02:57]}  Rb8 {[%clk 0:02:59]} 9. Rc1 {[%clk 0:02:57]}  h6 {[%clk 0:02:59]} 10. h3 {[%clk 0:02:56]}  Nh5 {[%clk 0:02:56]} 11. Be3 {[%clk 0:02:55]}  e5 {[%clk 0:02:56]} 12. dxe5 {[%clk 0:02:54]}  Nxe5 {[%clk 0:02:43]} 13. b3 {[%clk 0:02:49]}  Nxf3+ {[%clk 0:02:40]} 14. exf3 {[%clk 0:02:50]}  f5 {[%clk 0:02:38]} 15. f4 {[%clk 0:02:47]}  Nf6 {[%clk 0:02:38]} 16. Re1 {[%clk 0:02:45]}  Kh7 {[%clk 0:02:37]} 17. Ba7 {[%clk 0:02:42]}  Ra8 {[%clk 0:02:37]} 18. Bd4 {[%clk 0:02:42]}  Rb8 {[%clk 0:02:20]} 19. Ba7 {[%clk 0:02:40]}  Ra8 {[%clk 0:02:20]} 20. Bd4 {[%clk 0:02:41]}  c6 {[%clk 0:02:16]} 21. Na4 {[%clk 0:02:31]}  Rb8 {[%clk 0:02:11]} 22. Bb6 {[%clk 0:02:24]}  Qd7 {[%clk 0:02:08]} 23. Ba7 {[%clk 0:02:25]}  Qc7 {[%clk 0:01:47]} 24. Bxb8 {[%clk 0:02:24]}  Qxb8 {[%clk 0:01:48]} 25. Re7 {[%clk 0:02:23]}  Kg8 {[%clk 0:01:40]} 26. Nb6 {[%clk 0:02:17]}  Ne4 {[%clk 0:01:30]} 27. Bxe4 {[%clk 0:02:10]}  fxe4 {[%clk 0:01:30]} 28. Nxc8 {[%clk 0:02:07]}  Rxc8 {[%clk 0:01:22]} 29. Rxe4 {[%clk 0:02:04]}  Qc7 {[%clk 0:01:20]} 30. Qe2 {[%clk 0:02:02]}  Qd7 {[%clk 0:01:16]} 31. Kh2 {[%clk 0:02:00]}  Rc7 {[%clk 0:01:12]} 32. Re8+ {[%clk 0:01:58]}  Kh7 {[%clk 0:01:12]} 33. Re1 {[%clk 0:01:58]}  Qf5 {[%clk 0:01:07]} 34. Qe6 {[%clk 0:01:51]}  Qxe6 {[%clk 0:00:59]} 35. R1xe6 {[%clk 0:01:52]}  d5 {[%clk 0:00:59]} 36. R8e7 {[%clk 0:01:36]}  Rc8 {[%clk 0:00:54]} 37. Re8 {[%clk 0:01:33]}  Rc7 {[%clk 0:00:52]} 38. R6e7 {[%clk 0:01:33]}  Rxe7 {[%clk 0:00:48]} 39. Rxe7 {[%clk 0:01:34]}  b5 {[%clk 0:00:48]} 40. cxd5 {[%clk 0:01:25]}  cxd5 {[%clk 0:00:48]} 41. Rd7 {[%clk 0:01:25]}  d4 {[%clk 0:00:48]} 42. Kg2 {[%clk 0:01:22]}  Kg8 {[%clk 0:00:48]} 43. Kf3 {[%clk 0:01:22]}  Kf8 {[%clk 0:00:48]} 44. Ke4 {[%clk 0:01:22]}  Bf6 {[%clk 0:00:49]} 45. g4 {[%clk 0:01:14]}  Ke8 {[%clk 0:00:43]} 46. Rd6 {[%clk 0:01:12]}  Ke7 {[%clk 0:00:43]} 47. Rxa6 {[%clk 0:01:12]}  h5 {[%clk 0:00:43]} 48. gxh5 {[%clk 0:01:11]}  gxh5 {[%clk 0:00:43]} 49. Rxf6 {[%clk 0:01:10]}  Kxf6 {[%clk 0:00:43]} 50. Kxd4 {[%clk 0:01:10]}  Kf5 {[%clk 0:00:44]} 51. Ke3 {[%clk 0:01:10]}  b4 {[%clk 0:00:40]} 52. Kf3 {[%clk 0:01:10]}  h4 {[%clk 0:00:41]} 53. Ke3 {[%clk 0:01:09]}  Kf6 {[%clk 0:00:42]} 54. Ke4 {[%clk 0:01:10]}  Ke6 {[%clk 0:00:43]} 55. f5+ {[%clk 0:01:09]}  Kf6 {[%clk 0:00:42]} 56. Kf4 {[%clk 0:01:10]} 1-0


[Site "https://www.chess.com"]

[Event "Titled Tuesday Blitz January 17 Early 2023"]
[White "Parpiev, Isaak"]
[Black "Kaminski, Victor"]
[WhiteFideId "34281576"]
[BlackFideId "1131630"]
[WhiteElo "2167"]
[BlackElo "2247"]
[Result "1-0"]
[Round "02"]
[TimeControl "180+2"]
[Date "2023.01.17"]
[WhiteClock "0:00:26"]
[BlackClock "0:00:04"]

1. Nf3 {[%clk 0:03:00]}  Nf6 {[%clk 0:02:59]} 2. g3 {[%clk 0:03:01]}  g6 {[%clk 0:02:59]} 3. Bg2 {[%clk 0:03:01]}  Bg7 {[%clk 0:02:59]} 4. O-O {[%clk 0:03:02]}  O-O {[%clk 0:02:59]} 5. d3 {[%clk 0:03:02]}  d5 {[%clk 0:02:58]} 6. Nbd2 {[%clk 0:03:02]}  c5 {[%clk 0:02:56]} 7. e4 {[%clk 0:03:03]}  Nc6 {[%clk 0:02:56]} 8. Re1 {[%clk 0:03:01]}  Bg4 {[%clk 0:02:51]} 9. h3 {[%clk 0:03:01]}  Bxf3 {[%clk 0:02:44]} 10. Bxf3 {[%clk 0:03:01]}  e6 {[%clk 0:02:42]} 11. Bg2 {[%clk 0:03:01]}  Rc8 {[%clk 0:02:41]} 12. c3 {[%clk 0:03:01]}  Qc7 {[%clk 0:02:37]} 13. Qe2 {[%clk 0:03:01]}  Rfd8 {[%clk 0:02:37]} 14. Nf3 {[%clk 0:03:00]}  c4 {[%clk 0:02:30]} 15. dxc4 {[%clk 0:02:10]}  Nxe4 {[%clk 0:02:21]} 16. cxd5 {[%clk 0:02:06]}  exd5 {[%clk 0:02:22]} 17. Bf4 {[%clk 0:02:06]}  Qb6 {[%clk 0:02:21]} 18. Ng5 {[%clk 0:02:02]}  Nxg5 {[%clk 0:02:06]} 19. Bxg5 {[%clk 0:02:03]}  Rd7 {[%clk 0:01:50]} 20. Rad1 {[%clk 0:01:58]}  h6 {[%clk 0:01:45]} 21. Qg4 {[%clk 0:01:46]}  f5 {[%clk 0:01:37]} 22. Qh4 {[%clk 0:01:22]}  hxg5 {[%clk 0:01:35]} 23. Qxg5 {[%clk 0:01:23]}  Ne5 {[%clk 0:01:23]} 24. Rxd5 {[%clk 0:01:17]}  Rxd5 {[%clk 0:01:17]} 25. Bxd5+ {[%clk 0:01:18]}  Kh7 {[%clk 0:01:14]} 26. Qh4+ {[%clk 0:01:15]}  Bh6 {[%clk 0:01:11]} 27. Rxe5 {[%clk 0:01:15]}  Rc7 {[%clk 0:01:01]} 28. Re7+ {[%clk 0:00:59]}  Rxe7 {[%clk 0:00:59]} 29. Qxe7+ {[%clk 0:01:00]}  Bg7 {[%clk 0:01:00]} 30. Qxb7 {[%clk 0:00:59]}  Qc5 {[%clk 0:00:48]} 31. Qa8 {[%clk 0:00:54]}  Qe7 {[%clk 0:00:33]} 32. Bg8+ {[%clk 0:00:46]}  Kh6 {[%clk 0:00:33]} 33. Qf3 {[%clk 0:00:44]}  Qe1+ {[%clk 0:00:27]} 34. Kg2 {[%clk 0:00:44]}  Qd2 {[%clk 0:00:28]} 35. Qe3+ {[%clk 0:00:28]}  Qxe3 {[%clk 0:00:26]} 36. fxe3 {[%clk 0:00:29]}  Be5 {[%clk 0:00:24]} 37. Kf3 {[%clk 0:00:29]}  Kg5 {[%clk 0:00:12]} 38. Bf7 {[%clk 0:00:29]}  Kf6 {[%clk 0:00:12]} 39. Be8 {[%clk 0:00:29]}  g5 {[%clk 0:00:12]} 40. g4 {[%clk 0:00:30]}  fxg4+ {[%clk 0:00:10]} 41. hxg4 {[%clk 0:00:31]}  a5 {[%clk 0:00:07]} 42. Ke4 {[%clk 0:00:30]}  Bd6 {[%clk 0:00:05]} 43. Kd5 {[%clk 0:00:29]}  Be7 {[%clk 0:00:05]} 44. c4 {[%clk 0:00:28]}  Bb4 {[%clk 0:00:04]} 45. a3 {[%clk 0:00:28]}  Bd2 {[%clk 0:00:04]} 46. e4 {[%clk 0:00:27]}  Bf4 {[%clk 0:00:05]} 47. b4 {[%clk 0:00:27]}  Ke7 {[%clk 0:00:05]} 48. Bc6 {[%clk 0:00:25]}  axb4 {[%clk 0:00:05]} 49. axb4 {[%clk 0:00:26]}  Bd6 {[%clk 0:00:04]} 50. c5 {[%clk 0:00:26]}  Bf4 {[%clk 0:00:04]} 51. e5 {[%clk 0:00:26]} 1-0


[Site "https://www.chess.com"]

[Event "Titled Tuesday Blitz January 17 Early 2023"]
[White "Kalajzic, Ivan"]
[Black "Biastoch, Bennet"]
[WhiteFideId "14506378"]
[BlackFideId "12939889"]
[WhiteElo "2062"]
[BlackElo "2257"]
[Result "1/2-1/2"]
[Round "02"]
[TimeControl "180+2"]
[Date "2023.01.17"]
[WhiteClock "0:00:04"]
[BlackClock "0:00:59"]

1. b3 {[%clk 0:03:00]}  e5 {[%clk 0:02:59]} 2. Bb2 {[%clk 0:03:00]}  d6 {[%clk 0:02:59]} 3. e3 {[%clk 0:03:01]}  Nf6 {[%clk 0:02:57]} 4. d4 {[%clk 0:03:01]}  exd4 {[%clk 0:02:56]} 5. Qxd4 {[%clk 0:03:01]}  Nc6 {[%clk 0:02:56]} 6. Bb5 {[%clk 0:03:01]}  Bd7 {[%clk 0:02:56]} 7. Bxc6 {[%clk 0:03:01]}  Bxc6 {[%clk 0:02:57]} 8. Nf3 {[%clk 0:03:01]}  Be7 {[%clk 0:02:57]} 9. c4 {[%clk 0:03:01]}  Qd7 {[%clk 0:02:54]} 10. h3 {[%clk 0:03:00]}  a5 {[%clk 0:02:43]} 11. Nc3 {[%clk 0:02:58]}  b6 {[%clk 0:02:33]} 12. O-O-O {[%clk 0:02:48]}  O-O-O {[%clk 0:02:24]} 13. e4 {[%clk 0:02:29]}  Ne8 {[%clk 0:02:19]} 14. Nd5 {[%clk 0:02:24]}  Bxd5 {[%clk 0:02:17]} 15. Qxd5 {[%clk 0:02:21]}  c6 {[%clk 0:02:11]} 16. Qxf7 {[%clk 0:02:12]}  Rf8 {[%clk 0:02:08]} 17. Qh5 {[%clk 0:02:11]}  Nf6 {[%clk 0:02:08]} 18. Qf5 {[%clk 0:02:07]}  Qxf5 {[%clk 0:01:59]} 19. exf5 {[%clk 0:02:08]}  Ne4 {[%clk 0:02:00]} 20. Rhe1 {[%clk 0:01:53]}  d5 {[%clk 0:02:00]} 21. cxd5 {[%clk 0:01:46]}  cxd5 {[%clk 0:02:01]} 22. Re2 {[%clk 0:01:44]}  Rxf5 {[%clk 0:02:01]} 23. Rc2+ {[%clk 0:01:41]}  Kb7 {[%clk 0:01:58]} 24. Bxg7 {[%clk 0:01:21]}  Rg8 {[%clk 0:01:55]} 25. Be5 {[%clk 0:01:21]}  Bc5 {[%clk 0:01:48]} 26. Rxd5 {[%clk 0:01:11]}  Rxg2 {[%clk 0:01:47]} 27. Nh4 {[%clk 0:00:54]}  Ba3+ {[%clk 0:01:46]} 28. Kd1 {[%clk 0:00:42]}  Nxf2+ {[%clk 0:01:46]} 29. Ke2 {[%clk 0:00:38]}  Rgg5 {[%clk 0:01:36]} 30. Nxf5 {[%clk 0:00:37]}  Rxf5 {[%clk 0:01:36]} 31. Rc7+ {[%clk 0:00:36]}  Ka6 {[%clk 0:01:35]} 32. Rcd7 {[%clk 0:00:32]}  Ne4 {[%clk 0:01:31]} 33. Ke3 {[%clk 0:00:31]}  Nc5 {[%clk 0:01:30]} 34. Rd8 {[%clk 0:00:29]}  Ne6 {[%clk 0:01:23]} 35. R8d6 {[%clk 0:00:26]}  Bxd6 {[%clk 0:01:22]} 36. Ke4 {[%clk 0:00:26]}  Bxe5 {[%clk 0:01:18]} 37. Kxf5 {[%clk 0:00:25]}  Nf4 {[%clk 0:01:13]} 38. Rxe5 {[%clk 0:00:24]}  Nxh3 {[%clk 0:01:14]} 39. a4 {[%clk 0:00:20]}  h6 {[%clk 0:01:10]} 40. Re7 {[%clk 0:00:19]}  Ng5 {[%clk 0:01:06]} 41. Kg6 {[%clk 0:00:16]}  Nf3 {[%clk 0:01:06]} 42. Kxh6 {[%clk 0:00:15]}  Nd4 {[%clk 0:01:06]} 43. Re3 {[%clk 0:00:14]}  b5 {[%clk 0:01:07]} 44. Kg6 {[%clk 0:00:13]}  bxa4 {[%clk 0:01:04]} 45. bxa4 {[%clk 0:00:14]}  Kb6 {[%clk 0:01:05]} 46. Kf6 {[%clk 0:00:13]}  Kc5 {[%clk 0:01:05]} 47. Ke5 {[%clk 0:00:13]}  Nc6+ {[%clk 0:01:04]} 48. Ke4 {[%clk 0:00:13]}  Kb4 {[%clk 0:01:05]} 49. Kd5 {[%clk 0:00:13]}  Na7 {[%clk 0:01:00]} 50. Re4+ {[%clk 0:00:12]}  Kb3 {[%clk 0:01:00]} 51. Kc5 {[%clk 0:00:13]}  Nc8 {[%clk 0:01:00]} 52. Re8 {[%clk 0:00:11]}  Na7 {[%clk 0:01:00]} 53. Kb6 {[%clk 0:00:11]}  Kxa4 {[%clk 0:00:59]} 54. Kxa7 {[%clk 0:00:11]}  Kb3 {[%clk 0:01:00]} 55. Rb8+ {[%clk 0:00:11]}  Kc3 {[%clk 0:00:58]} 56. Rc8+ {[%clk 0:00:10]}  Kb3 {[%clk 0:00:58]} 57. Kb6 {[%clk 0:00:10]}  a4 {[%clk 0:00:58]} 58. Kc5 {[%clk 0:00:10]}  a3 {[%clk 0:00:59]} 59. Rb8+ {[%clk 0:00:10]}  Kc2 {[%clk 0:00:59]} 60. Ra8 {[%clk 0:00:08]}  Kb2 {[%clk 0:00:59]} 61. Rb8+ {[%clk 0:00:05]}  Kc2 {[%clk 0:00:59]} 62. Ra8 {[%clk 0:00:04]}  Kb2 {[%clk 0:00:59]} 63. Rxa3 {[%clk 0:00:04]}  Kxa3 {[%clk 0:00:59]} 1/2-1/2


[Site "https://www.chess.com"]

[Event "Titled Tuesday Blitz January 17 Early 2023"]
[White "Khamdamova, Afruza"]
[Black "Mihailidis, Anastasios"]
[WhiteFideId "14210444"]
[BlackFideId "4205588"]
[WhiteElo "2162"]
[BlackElo "2208"]
[Result "1-0"]
[Round "02"]
[TimeControl "180+2"]
[Date "2023.01.17"]
[WhiteClock "0:00:10"]
[BlackClock "0:00:13"]

1. e4 {[%clk 0:03:00]}  c5 {[%clk 0:02:59]} 2. Nf3 {[%clk 0:03:00]}  d6 {[%clk 0:02:59]} 3. d4 {[%clk 0:03:00]}  cxd4 {[%clk 0:03:00]} 4. Nxd4 {[%clk 0:03:00]}  Nf6 {[%clk 0:03:01]} 5. Nc3 {[%clk 0:03:00]}  g6 {[%clk 0:03:02]} 6. Be3 {[%clk 0:02:58]}  Bg7 {[%clk 0:03:02]} 7. f3 {[%clk 0:02:58]}  O-O {[%clk 0:03:03]} 8. Qd2 {[%clk 0:02:58]}  Nc6 {[%clk 0:03:03]} 9. O-O-O {[%clk 0:02:58]}  d5 {[%clk 0:03:03]} 10. exd5 {[%clk 0:02:57]}  Nxd5 {[%clk 0:03:02]} 11. Nxc6 {[%clk 0:02:57]}  bxc6 {[%clk 0:03:02]} 12. Bd4 {[%clk 0:02:58]}  Nxc3 {[%clk 0:03:02]} 13. Qxc3 {[%clk 0:02:52]}  Bh6+ {[%clk 0:03:02]} 14. Kb1 {[%clk 0:02:51]}  e5 {[%clk 0:03:02]} 15. Qxc6 {[%clk 0:02:26]}  Bf5 {[%clk 0:02:56]} 16. Bd3 {[%clk 0:02:02]}  Bxd3 {[%clk 0:02:40]} 17. Rxd3 {[%clk 0:02:02]}  exd4 {[%clk 0:02:39]} 18. h4 {[%clk 0:02:00]}  Qb6 {[%clk 0:02:35]} 19. Qe4 {[%clk 0:01:53]}  Rfe8 {[%clk 0:02:32]} 20. Qg4 {[%clk 0:01:30]}  Qe6 {[%clk 0:02:20]} 21. Qg3 {[%clk 0:01:23]}  Qe5 {[%clk 0:02:15]} 22. Qh3 {[%clk 0:01:13]}  Re6 {[%clk 0:01:57]} 23. h5 {[%clk 0:01:08]}  g5 {[%clk 0:01:52]} 24. g3 {[%clk 0:00:49]}  Rae8 {[%clk 0:01:47]} 25. a3 {[%clk 0:00:47]}  Bg7 {[%clk 0:01:38]} 26. Qg4 {[%clk 0:00:44]}  h6 {[%clk 0:01:22]} 27. f4 {[%clk 0:00:41]}  Qd5 {[%clk 0:01:19]} 28. Rhd1 {[%clk 0:00:40]}  f5 {[%clk 0:01:15]} 29. Qh3 {[%clk 0:00:34]}  g4 {[%clk 0:01:15]} 30. Qf1 {[%clk 0:00:34]}  Re2 {[%clk 0:01:12]} 31. Rc1 {[%clk 0:00:25]}  Qg2 {[%clk 0:01:05]} 32. Qd1 {[%clk 0:00:25]}  Rc8 {[%clk 0:01:03]} 33. Rb3 {[%clk 0:00:20]}  Rc7 {[%clk 0:00:44]} 34. Rb8+ {[%clk 0:00:19]}  Kh7 {[%clk 0:00:43]} 35. Qd3 {[%clk 0:00:20]}  Rf7 {[%clk 0:00:43]} 36. Qb3 {[%clk 0:00:19]}  Qe4 {[%clk 0:00:32]} 37. Qxf7 {[%clk 0:00:18]}  Qe6 {[%clk 0:00:27]} 38. Rb7 {[%clk 0:00:13]}  Qxf7 {[%clk 0:00:26]} 39. Rxf7 {[%clk 0:00:13]}  Re3 {[%clk 0:00:24]} 40. Rg1 {[%clk 0:00:12]}  a5 {[%clk 0:00:22]} 41. Ra7 {[%clk 0:00:11]}  d3 {[%clk 0:00:22]} 42. cxd3 {[%clk 0:00:11]}  Re2 {[%clk 0:00:20]} 43. Rb7 {[%clk 0:00:10]}  Kg8 {[%clk 0:00:17]} 44. Rc1 {[%clk 0:00:10]}  Bd4 {[%clk 0:00:13]} 45. Rc8+ {[%clk 0:00:10]} 1-0


[Site "https://www.chess.com"]

[Event "Titled Tuesday Blitz January 17 Early 2023"]
[White "Ovezdurdyyeva, Jemal"]
[Black "Kvaloy, Aksel Bu"]
[WhiteFideId "14001888"]
[BlackFideId "1528815"]
[WhiteElo "2078"]
[BlackElo "2321"]
[Result "1-0"]
[Round "02"]
[TimeControl "180+2"]
[Date "2023.01.17"]
[WhiteClock "0:01:17"]
[BlackClock "0:01:04"]

1. e4 {[%clk 0:03:00]}  e5 {[%clk 0:02:59]} 2. Nf3 {[%clk 0:03:00]}  Nf6 {[%clk 0:03:00]} 3. Nxe5 {[%clk 0:02:58]}  Nc6 {[%clk 0:03:00]} 4. Nf3 {[%clk 0:02:57]}  Nxe4 {[%clk 0:02:58]} 5. Nc3 {[%clk 0:02:52]}  Nxc3 {[%clk 0:02:55]} 6. dxc3 {[%clk 0:02:53]}  d5 {[%clk 0:02:54]} 7. Bd3 {[%clk 0:02:50]}  Bg4 {[%clk 0:02:50]} 8. Be3 {[%clk 0:02:46]}  Ne5 {[%clk 0:02:46]} 9. Be2 {[%clk 0:02:37]}  Nxf3+ {[%clk 0:02:41]} 10. gxf3 {[%clk 0:02:36]}  Be6 {[%clk 0:02:40]} 11. Qd2 {[%clk 0:02:32]}  c6 {[%clk 0:02:39]} 12. O-O-O {[%clk 0:02:32]}  Be7 {[%clk 0:02:37]} 13. Rhg1 {[%clk 0:02:31]}  Bf6 {[%clk 0:02:36]} 14. Bd4 {[%clk 0:02:26]}  Qe7 {[%clk 0:02:26]} 15. f4 {[%clk 0:02:17]}  O-O-O {[%clk 0:02:23]} 16. Bd3 {[%clk 0:02:17]}  c5 {[%clk 0:02:17]} 17. Be5 {[%clk 0:02:13]}  Bxe5 {[%clk 0:02:08]} 18. fxe5 {[%clk 0:02:13]}  Kb8 {[%clk 0:02:08]} 19. f4 {[%clk 0:02:12]}  f5 {[%clk 0:02:07]} 20. exf6 {[%clk 0:02:01]}  Qxf6 {[%clk 0:02:05]} 21. f5 {[%clk 0:02:01]}  Bf7 {[%clk 0:01:59]} 22. Qf2 {[%clk 0:01:51]}  Rc8 {[%clk 0:01:53]} 23. Qg3+ {[%clk 0:01:50]}  Ka8 {[%clk 0:01:49]} 24. Qxg7 {[%clk 0:01:50]}  Qxg7 {[%clk 0:01:47]} 25. Rxg7 {[%clk 0:01:51]}  Rcf8 {[%clk 0:01:46]} 26. f6 {[%clk 0:01:49]}  c4 {[%clk 0:01:40]} 27. Bxh7 {[%clk 0:01:45]}  Be6 {[%clk 0:01:29]} 28. Rf1 {[%clk 0:01:43]}  Kb8 {[%clk 0:01:17]} 29. f7 {[%clk 0:01:28]}  Kc8 {[%clk 0:01:11]} 30. Rg8 {[%clk 0:01:27]}  Rhxg8 {[%clk 0:00:54]} 31. fxg8=Q {[%clk 0:01:21]}  Rxg8 {[%clk 0:00:54]} 32. Bxg8 {[%clk 0:01:21]}  Bxg8 {[%clk 0:00:55]} 33. Rf8+ {[%clk 0:01:21]}  Kc7 {[%clk 0:00:56]} 34. Rxg8 {[%clk 0:01:22]}  Kc6 {[%clk 0:00:57]} 35. h4 {[%clk 0:01:20]}  Kc5 {[%clk 0:00:57]} 36. h5 {[%clk 0:01:20]}  b6 {[%clk 0:00:58]} 37. h6 {[%clk 0:01:20]}  d4 {[%clk 0:00:59]} 38. cxd4+ {[%clk 0:01:20]}  Kb4 {[%clk 0:00:59]} 39. h7 {[%clk 0:01:21]}  b5 {[%clk 0:01:00]} 40. h8=Q {[%clk 0:01:21]}  c3 {[%clk 0:01:01]} 41. bxc3+ {[%clk 0:01:20]}  Ka3 {[%clk 0:01:01]} 42. Qg7 {[%clk 0:01:19]}  a5 {[%clk 0:01:02]} 43. Qe7+ {[%clk 0:01:19]}  b4 {[%clk 0:01:03]} 44. cxb4 {[%clk 0:01:19]}  a4 {[%clk 0:01:04]} 45. Rg3+ {[%clk 0:01:19]}  Kxa2 {[%clk 0:01:04]} 46. Qe6+ {[%clk 0:01:18]}  Ka1 {[%clk 0:01:04]} 47. Ra3# {[%clk 0:01:17]} 1-0


[Site "https://www.chess.com"]

[Event "Titled Tuesday Blitz January 17 Early 2023"]
[White "Bosnjak, Petar"]
[Black "Matveeva, Olga"]
[WhiteFideId "14532581"]
[BlackFideId "24107018"]
[WhiteElo "2337"]
[BlackElo "2128"]
[Result "1-0"]
[Round "02"]
[TimeControl "180+2"]
[Date "2023.01.17"]
[WhiteClock "0:00:36"]
[BlackClock "0:00:02"]

1. d4 {[%clk 0:03:00]}  d5 {[%clk 0:02:59]} 2. c3 {[%clk 0:03:01]}  e6 {[%clk 0:02:59]} 3. Bf4 {[%clk 0:03:01]}  Nf6 {[%clk 0:02:59]} 4. e3 {[%clk 0:03:01]}  c5 {[%clk 0:03:00]} 5. Bd3 {[%clk 0:03:02]}  Nc6 {[%clk 0:03:00]} 6. Nd2 {[%clk 0:03:00]}  Bd6 {[%clk 0:03:00]} 7. Bg5 {[%clk 0:03:00]}  O-O {[%clk 0:02:47]} 8. f4 {[%clk 0:03:00]}  h6 {[%clk 0:02:30]} 9. Bh4 {[%clk 0:02:54]}  Be7 {[%clk 0:02:23]} 10. Ngf3 {[%clk 0:02:49]}  b6 {[%clk 0:02:21]} 11. O-O {[%clk 0:02:48]}  Bb7 {[%clk 0:02:20]} 12. Ne5 {[%clk 0:02:48]}  cxd4 {[%clk 0:02:05]} 13. exd4 {[%clk 0:02:46]}  Ne4 {[%clk 0:01:54]} 14. Bxe7 {[%clk 0:02:44]}  Nxe7 {[%clk 0:01:53]} 15. Qe2 {[%clk 0:02:40]}  f5 {[%clk 0:01:48]} 16. g4 {[%clk 0:02:34]}  Qe8 {[%clk 0:01:39]} 17. Rae1 {[%clk 0:01:49]}  Rc8 {[%clk 0:01:37]} 18. Kh1 {[%clk 0:01:47]}  Nc6 {[%clk 0:01:18]} 19. Nxe4 {[%clk 0:01:41]}  dxe4 {[%clk 0:01:17]} 20. Bb5 {[%clk 0:01:41]}  a6 {[%clk 0:00:52]} 21. Bxc6 {[%clk 0:01:39]}  Bxc6 {[%clk 0:00:50]} 22. h3 {[%clk 0:01:37]}  Bd5 {[%clk 0:00:46]} 23. a3 {[%clk 0:01:37]}  b5 {[%clk 0:00:45]} 24. Qe3 {[%clk 0:01:34]}  a5 {[%clk 0:00:34]} 25. Rg1 {[%clk 0:01:32]}  b4 {[%clk 0:00:32]} 26. axb4 {[%clk 0:01:32]}  axb4 {[%clk 0:00:33]} 27. g5 {[%clk 0:01:30]}  h5 {[%clk 0:00:32]} 28. Qe2 {[%clk 0:01:22]}  bxc3 {[%clk 0:00:29]} 29. g6 {[%clk 0:01:14]}  e3+ {[%clk 0:00:19]} 30. Kh2 {[%clk 0:01:14]}  cxb2 {[%clk 0:00:19]} 31. Qxh5 {[%clk 0:01:13]}  Rc2+ {[%clk 0:00:18]} 32. Kg3 {[%clk 0:01:10]}  Rf6 {[%clk 0:00:13]} 33. Qh7+ {[%clk 0:01:05]}  Kf8 {[%clk 0:00:13]} 34. Qh8+ {[%clk 0:01:04]}  Ke7 {[%clk 0:00:14]} 35. Qxg7+ {[%clk 0:01:03]}  Kd6 {[%clk 0:00:14]} 36. Qxf6 {[%clk 0:01:01]}  e2 {[%clk 0:00:07]} 37. Nf7+ {[%clk 0:01:00]}  Kc7 {[%clk 0:00:04]} 38. Qe5+ {[%clk 0:00:59]}  Kb6 {[%clk 0:00:04]} 39. Qd6+ {[%clk 0:00:58]}  Kb5 {[%clk 0:00:03]} 40. Ne5 {[%clk 0:00:50]}  Rc3+ {[%clk 0:00:02]} 41. Kf2 {[%clk 0:00:45]}  Rc2 {[%clk 0:00:02]} 42. Rg3 {[%clk 0:00:36]} 1-0


[Site "https://www.chess.com"]